[Event "Late-Titled-Tuesday-Blitz-January-16-2024"]
[Site "Chess.com"]
[Date "2024.01.16"]
[Round "5"]
[White "LUISMIGUELOV"]
[Black "maximnovik"]
[Result "0-1"]
[WhiteElo "2175"]
[BlackElo "2537"]
[TimeControl "180+1"]
[EndTime "14:49:54 PST"]
[Termination "maximnovik won by resignation"]

1. d4 {[%clk 0:02:01.2]} 1... Nf6 {[%clk 0:02:57.7]} 2. c3 {[%clk 0:02:01]} 2...
g6 {[%clk 0:02:57.8]} 3. Bg5 {[%clk 0:02:00.6]} 3... Bg7 {[%clk 0:02:58]} 4. Nd2
{[%clk 0:02:00.5]} 4... d5 {[%clk 0:02:58.3]} 5. e3 {[%clk 0:02:00.4]} 5... O-O
{[%clk 0:02:58.7]} 6. Bd3 {[%clk 0:02:00.3]} 6... c5 {[%clk 0:02:57.6]} 7. h3
{[%clk 0:01:58.5]} 7... Qb6 {[%clk 0:02:56.5]} 8. Qb3 {[%clk 0:01:56.7]} 8... c4
{[%clk 0:02:55.9]} 9. Qxb6 {[%clk 0:01:56.4]} 9... axb6 {[%clk 0:02:56.2]} 10.
Bc2 {[%clk 0:01:56.5]} 10... b5 {[%clk 0:02:56.5]} 11. a3 {[%clk 0:01:55.5]}
11... Nc6 {[%clk 0:02:56.9]} 12. Rc1 {[%clk 0:01:51.8]} 12... Bf5 {[%clk
0:02:53.1]} 13. Bxf6 {[%clk 0:01:48]} 13... Bxf6 {[%clk 0:02:52]} 14. Ngf3
{[%clk 0:01:48.1]} 14... Bxc2 {[%clk 0:02:46.9]} 15. Rxc2 {[%clk 0:01:47.3]}
15... b4 {[%clk 0:02:41.7]} 16. axb4 {[%clk 0:01:44.5]} 16... Ra1+ {[%clk
0:02:37.2]} 17. Ke2 {[%clk 0:01:34.7]} 17... Rxh1 {[%clk 0:02:36.9]} 18. Nf1
{[%clk 0:01:34.5]} 18... e5 {[%clk 0:02:33.9]} 19. dxe5 {[%clk 0:01:33.7]} 19...
Nxe5 {[%clk 0:02:33.3]} 20. Nxe5 {[%clk 0:01:33.5]} 20... Bxe5 {[%clk
0:02:32.9]} 21. Rd2 {[%clk 0:01:33.3]} 21... Rd8 {[%clk 0:02:31.1]} 22. f4
{[%clk 0:01:27]} 22... Bg7 {[%clk 0:02:26.1]} 23. Kf2 {[%clk 0:01:26.2]} 23...
f5 {[%clk 0:02:24.2]} 24. g3 {[%clk 0:01:27.1]} 24... Rxh3 {[%clk 0:02:21.5]}
25. Kg2 {[%clk 0:01:28]} 25... Rh5 {[%clk 0:02:21.1]} 26. Nh2 {[%clk 0:01:15.3]}
26... Rxh2+ {[%clk 0:02:17.9]} 27. Kxh2 {[%clk 0:01:14.7]} 27... Kf7 {[%clk
0:02:18.3]} 28. Kh3 {[%clk 0:01:13.9]} 28... Ke6 {[%clk 0:02:18.6]} 29. g4
{[%clk 0:01:14.1]} 29... fxg4+ {[%clk 0:02:16]} 30. Kxg4 {[%clk 0:01:14]} 30...
Bf6 {[%clk 0:02:16.5]} 31. e4 {[%clk 0:01:12.5]} 31... h5+ {[%clk 0:02:16.2]}
32. Kf3 {[%clk 0:01:09.4]} 32... dxe4+ {[%clk 0:02:16.4]} 0-1

[Event "Late-Titled-Tuesday-Blitz-January-16-2024"]
[Site "Chess.com"]
[Date "2024.01.16"]
[Round "5"]
[White "Antipov_Mikhail_Al"]
[Black "infinitypoint"]
[Result "1-0"]
[WhiteElo "2911"]
[BlackElo "2591"]
[TimeControl "180+1"]
[EndTime "14:49:56 PST"]
[Termination "Antipov_Mikhail_Al won by resignation"]

1. e4 {[%clk 0:03:00.9]} 1... c6 {[%clk 0:02:59.4]} 2. d4 {[%clk 0:03:00.4]}
2... d5 {[%clk 0:03:00.1]} 3. exd5 {[%clk 0:03:01.3]} 3... cxd5 {[%clk
0:03:00.7]} 4. Bd3 {[%clk 0:03:01.8]} 4... Nc6 {[%clk 0:03:00.9]} 5. c3 {[%clk
0:03:02]} 5... Nf6 {[%clk 0:03:01.4]} 6. h3 {[%clk 0:03:02.5]} 6... g6 {[%clk
0:02:59.9]} 7. Nf3 {[%clk 0:03:02.7]} 7... Bg7 {[%clk 0:03:00.4]} 8. O-O {[%clk
0:03:02.4]} 8... Bf5 {[%clk 0:02:59.6]} 9. Be2 {[%clk 0:03:02.3]} 9... a6 {[%clk
0:02:55.8]} 10. Re1 {[%clk 0:03:01.9]} 10... O-O {[%clk 0:02:55.5]} 11. Be3
{[%clk 0:03:01.8]} 11... Qb6 {[%clk 0:02:55.1]} 12. Qb3 {[%clk 0:03:00.8]} 12...
Qc7 {[%clk 0:02:53.2]} 13. Nbd2 {[%clk 0:03:00.6]} 13... h6 {[%clk 0:02:45.4]}
14. Rac1 {[%clk 0:03:00.3]} 14... b5 {[%clk 0:02:44.7]} 15. a4 {[%clk
0:02:59.1]} 15... Rfb8 {[%clk 0:02:38.8]} 16. axb5 {[%clk 0:02:58.9]} 16... axb5
{[%clk 0:02:39.6]} 17. Ra1 {[%clk 0:02:57.4]} 17... Rxa1 {[%clk 0:02:35.7]} 18.
Rxa1 {[%clk 0:02:58.3]} 18... b4 {[%clk 0:02:36.3]} 19. c4 {[%clk 0:02:52.7]}
19... Na5 {[%clk 0:02:34.2]} 20. Qa2 {[%clk 0:02:52.7]} 20... Nxc4 {[%clk
0:02:31.7]} 21. Nxc4 {[%clk 0:02:53.6]} 21... dxc4 {[%clk 0:02:29.9]} 22. Bxc4
{[%clk 0:02:54.5]} 22... e6 {[%clk 0:02:23.3]} 23. Ne5 {[%clk 0:02:48.7]} 23...
Be4 {[%clk 0:02:03.4]} 24. Qa7 {[%clk 0:02:39.1]} 24... Qxa7 {[%clk 0:01:57.1]}
25. Rxa7 {[%clk 0:02:40]} 25... Rb7 {[%clk 0:01:50.2]} 26. Ra8+ {[%clk
0:02:39.6]} 26... Kh7 {[%clk 0:01:50]} 27. b3 {[%clk 0:02:37.2]} 27... Nd5
{[%clk 0:01:45.7]} 28. Rd8 {[%clk 0:02:25.1]} 28... Nxe3 {[%clk 0:01:39.1]} 29.
fxe3 {[%clk 0:02:26]} 29... Bxe5 {[%clk 0:01:38.7]} 30. dxe5 {[%clk 0:02:26.9]}
30... Ra7 {[%clk 0:01:37.4]} 31. Rd4 {[%clk 0:02:26.9]} 31... Ra1+ {[%clk
0:01:37.3]} 32. Kh2 {[%clk 0:02:26.3]} 32... Bc6 {[%clk 0:01:37.5]} 33. Bd3
{[%clk 0:02:12.2]} 33... Rd1 {[%clk 0:01:22.6]} 34. Bxg6+ {[%clk 0:02:09.6]}
34... Kxg6 {[%clk 0:01:22.7]} 35. Rxd1 {[%clk 0:02:10.5]} 35... Kf5 {[%clk
0:01:23.4]} 36. Rd4 {[%clk 0:02:10.8]} 36... Kxe5 {[%clk 0:01:22.9]} 37. Rxb4
{[%clk 0:02:11.7]} 37... Bd5 {[%clk 0:01:23.3]} 38. Kg3 {[%clk 0:02:12.1]} 38...
f5 {[%clk 0:01:23.3]} 39. Rh4 {[%clk 0:02:10.7]} 1-0

[Event "Late-Titled-Tuesday-Blitz-January-16-2024"]
[Site "Chess.com"]
[Date "2024.01.16"]
[Round "5"]
[White "karinachess1"]
[Black "JG-17"]
[Result "1-0"]
[WhiteElo "2631"]
[BlackElo "2474"]
[TimeControl "180+1"]
[EndTime "14:49:56 PST"]
[Termination "karinachess1 won by resignation"]

1. d4 {[%clk 0:03:00.9]} 1... d5 {[%clk 0:02:59.9]} 2. c4 {[%clk 0:03:00.7]}
2... e6 {[%clk 0:03:00.6]} 3. Nc3 {[%clk 0:03:00.6]} 3... c6 {[%clk 0:03:01.1]}
4. e4 {[%clk 0:02:49.7]} 4... dxe4 {[%clk 0:03:02]} 5. Nxe4 {[%clk 0:02:49.9]}
5... Bb4+ {[%clk 0:03:02.7]} 6. Nc3 {[%clk 0:02:50.2]} 6... c5 {[%clk
0:03:02.5]} 7. Nf3 {[%clk 0:02:45.4]} 7... Nf6 {[%clk 0:03:01.5]} 8. a3 {[%clk
0:02:43.8]} 8... Ba5 {[%clk 0:02:59.5]} 9. Be2 {[%clk 0:02:37.3]} 9... O-O
{[%clk 0:02:56.6]} 10. O-O {[%clk 0:02:35.4]} 10... Nc6 {[%clk 0:02:50.1]} 11.
dxc5 {[%clk 0:02:25.3]} 11... Bxc3 {[%clk 0:02:49.6]} 12. bxc3 {[%clk
0:02:23.9]} 12... Ne4 {[%clk 0:02:43.5]} 13. Qc2 {[%clk 0:02:23.4]} 13... Nxc5
{[%clk 0:02:40.9]} 14. Be3 {[%clk 0:02:15.5]} 14... Qe7 {[%clk 0:02:38.8]} 15.
Rfd1 {[%clk 0:02:05]} 15... b6 {[%clk 0:02:38.7]} 16. Ng5 {[%clk 0:01:56]} 16...
g6 {[%clk 0:02:34.1]} 17. Bf3 {[%clk 0:01:44.5]} 17... Bb7 {[%clk 0:02:33.4]}
18. Bxc5 {[%clk 0:01:31]} 18... Qxc5 {[%clk 0:02:25.3]} 19. Ne4 {[%clk
0:01:30.6]} 19... Qe7 {[%clk 0:02:20.3]} 20. Rd7 {[%clk 0:01:27.6]} 20... Qh4
{[%clk 0:02:06.5]} 21. Rxb7 {[%clk 0:01:25]} 21... Ne5 {[%clk 0:02:07.2]} 22.
Qe2 {[%clk 0:01:21.5]} 22... Rad8 {[%clk 0:02:06.1]} 23. g3 {[%clk 0:01:14.1]}
23... Qh3 {[%clk 0:02:00.3]} 24. Nf6+ {[%clk 0:01:11]} 24... Kg7 {[%clk
0:01:53.7]} 25. Qxe5 {[%clk 0:01:10.8]} 1-0

[Event "Late-Titled-Tuesday-Blitz-January-16-2024"]
[Site "Chess.com"]
[Date "2024.01.16"]
[Round "5"]
[White "chessprincesa1"]
[Black "ninguno46"]
[Result "0-1"]
[WhiteElo "2310"]
[BlackElo "2557"]
[TimeControl "180+1"]
[EndTime "14:50:03 PST"]
[Termination "ninguno46 won by resignation"]

1. d4 {[%clk 0:02:59]} 1... Nf6 {[%clk 0:02:59.2]} 2. c4 {[%clk 0:02:57.7]} 2...
e6 {[%clk 0:02:58.7]} 3. g3 {[%clk 0:02:57.3]} 3... c5 {[%clk 0:02:56.6]} 4. d5
{[%clk 0:02:56]} 4... exd5 {[%clk 0:02:56.4]} 5. cxd5 {[%clk 0:02:56.9]} 5... d6
{[%clk 0:02:57]} 6. Nc3 {[%clk 0:02:54]} 6... g6 {[%clk 0:02:57.5]} 7. Bg2
{[%clk 0:02:54.4]} 7... Bg7 {[%clk 0:02:58.1]} 8. Nf3 {[%clk 0:02:55.1]} 8...
O-O {[%clk 0:02:58.7]} 9. O-O {[%clk 0:02:55.8]} 9... Na6 {[%clk 0:02:56.8]} 10.
Re1 {[%clk 0:02:51.8]} 10... Nc7 {[%clk 0:02:56.5]} 11. h3 {[%clk 0:02:48.5]}
11... b5 {[%clk 0:02:53.7]} 12. e4 {[%clk 0:02:48.5]} 12... b4 {[%clk 0:02:54]}
13. Nb1 {[%clk 0:02:47.5]} 13... Bb7 {[%clk 0:02:46]} 14. Nbd2 {[%clk
0:02:40.4]} 14... Re8 {[%clk 0:02:45.3]} 15. Qc2 {[%clk 0:02:25.6]} 15... a5
{[%clk 0:02:43.1]} 16. Nc4 {[%clk 0:02:23.7]} 16... Nb5 {[%clk 0:02:39.7]} 17.
Bf4 {[%clk 0:01:40.1]} 17... a4 {[%clk 0:02:34.8]} 18. Rad1 {[%clk 0:01:37.9]}
18... a3 {[%clk 0:02:26.4]} 19. bxa3 {[%clk 0:01:10.9]} 19... Nxa3 {[%clk
0:02:24.6]} 20. Nxa3 {[%clk 0:01:10.9]} 20... Rxa3 {[%clk 0:02:24.3]} 21. Nd2
{[%clk 0:01:01.5]} 21... Nh5 {[%clk 0:02:19.4]} 22. Nc4 {[%clk 0:00:59.2]} 22...
Rc3 {[%clk 0:02:16.9]} 23. Qe2 {[%clk 0:00:55.5]} 23... Nxf4 {[%clk 0:02:15.6]}
24. gxf4 {[%clk 0:00:56.4]} 24... Ba6 {[%clk 0:02:15.5]} 0-1

[Event "Late-Titled-Tuesday-Blitz-January-16-2024"]
[Site "Chess.com"]
[Date "2024.01.16"]
[Round "5"]
[White "ccccvhhhj"]
[Black "chegueps"]
[Result "0-1"]
[WhiteElo "2517"]
[BlackElo "2685"]
[TimeControl "180+1"]
[EndTime "14:50:08 PST"]
[Termination "chegueps won by resignation"]

1. e4 {[%clk 0:03:00.9]} 1... Nf6 {[%clk 0:02:56.6]} 2. e5 {[%clk 0:02:58.1]}
2... Nd5 {[%clk 0:02:55]} 3. d4 {[%clk 0:02:58.8]} 3... d6 {[%clk 0:02:53.4]} 4.
Bc4 {[%clk 0:02:59.5]} 4... Nb6 {[%clk 0:02:35.5]} 5. Bb3 {[%clk 0:02:59.1]}
5... dxe5 {[%clk 0:02:35.1]} 6. Qh5 {[%clk 0:02:59.8]} 6... e6 {[%clk
0:02:25.5]} 7. dxe5 {[%clk 0:03:00.3]} 7... Nc6 {[%clk 0:02:21.6]} 8. Nf3 {[%clk
0:02:59.5]} 8... g6 {[%clk 0:02:04.4]} 9. Qg4 {[%clk 0:02:59.3]} 9... h5 {[%clk
0:01:57.8]} 10. Qg3 {[%clk 0:02:58.9]} 10... h4 {[%clk 0:01:57.6]} 11. Qf4
{[%clk 0:02:58.7]} 11... Bh6 {[%clk 0:01:56.5]} 12. Qxh6 {[%clk 0:02:49.3]}
12... Rxh6 {[%clk 0:01:55.9]} 13. Bxh6 {[%clk 0:02:50.2]} 13... h3 {[%clk
0:01:40.2]} 14. gxh3 {[%clk 0:02:50]} 14... Nxe5 {[%clk 0:01:35.6]} 15. Nxe5
{[%clk 0:02:41.7]} 15... Qd4 {[%clk 0:01:35.6]} 16. Nd3 {[%clk 0:02:41.4]} 16...
Qe4+ {[%clk 0:01:35.7]} 17. Be3 {[%clk 0:02:35.2]} 17... Qxh1+ {[%clk
0:01:35.6]} 18. Kd2 {[%clk 0:02:36.1]} 18... Bd7 {[%clk 0:01:33.1]} 19. a4
{[%clk 0:02:32.3]} 19... O-O-O {[%clk 0:01:30.7]} 20. a5 {[%clk 0:02:32.8]}
20... Nd5 {[%clk 0:01:26.9]} 21. Bxa7 {[%clk 0:02:32.9]} 21... Bb5 {[%clk
0:01:21.2]} 22. Bc5 {[%clk 0:01:50.2]} 22... Nf4 {[%clk 0:01:16.9]} 23. Nc3
{[%clk 0:01:46.6]} 23... Qxa1 {[%clk 0:01:11.5]} 24. Nxb5 {[%clk 0:01:47.2]}
24... Qxa5+ {[%clk 0:01:09.3]} 25. Nc3 {[%clk 0:01:43.6]} 0-1

[Event "Late-Titled-Tuesday-Blitz-January-16-2024"]
[Site "Chess.com"]
[Date "2024.01.16"]
[Round "5"]
[White "Championnn-9"]
[Black "sergoy"]
[Result "0-1"]
[WhiteElo "2532"]
[BlackElo "2996"]
[TimeControl "180+1"]
[EndTime "14:50:50 PST"]
[Termination "sergoy won on time"]

1. Nf3 {[%clk 0:02:59.4]} 1... d6 {[%clk 0:02:59]} 2. d4 {[%clk 0:02:59]} 2...
Nf6 {[%clk 0:02:59.6]} 3. g3 {[%clk 0:02:56.2]} 3... g6 {[%clk 0:03:00]} 4. Bg2
{[%clk 0:02:56.4]} 4... Bg7 {[%clk 0:03:00.8]} 5. O-O {[%clk 0:02:56.6]} 5...
O-O {[%clk 0:03:01.5]} 6. c4 {[%clk 0:02:56.6]} 6... Nc6 {[%clk 0:03:01.4]} 7.
Nc3 {[%clk 0:02:52.6]} 7... a6 {[%clk 0:02:59.8]} 8. Re1 {[%clk 0:02:25.3]} 8...
Rb8 {[%clk 0:02:55.3]} 9. e4 {[%clk 0:02:18.9]} 9... b5 {[%clk 0:02:55.3]} 10.
cxb5 {[%clk 0:02:12.9]} 10... axb5 {[%clk 0:02:56.2]} 11. a3 {[%clk 0:02:10.7]}
11... Bg4 {[%clk 0:02:52.9]} 12. Be3 {[%clk 0:02:09.8]} 12... e5 {[%clk
0:02:52.3]} 13. d5 {[%clk 0:02:06.6]} 13... Na5 {[%clk 0:02:52.6]} 14. h3 {[%clk
0:01:44.2]} 14... Bxf3 {[%clk 0:02:50.2]} 15. Bxf3 {[%clk 0:01:42.4]} 15... Nc4
{[%clk 0:02:50.9]} 16. Bc1 {[%clk 0:01:33]} 16... Nd7 {[%clk 0:02:50.9]} 17. b3
{[%clk 0:01:33.1]} 17... Na5 {[%clk 0:02:51.2]} 18. Bb2 {[%clk 0:01:32.1]} 18...
f5 {[%clk 0:02:50.5]} 19. a4 {[%clk 0:01:25.6]} 19... b4 {[%clk 0:02:48.6]} 20.
Nb5 {[%clk 0:01:21.2]} 20... Nc5 {[%clk 0:02:48.9]} 21. exf5 {[%clk 0:01:21]}
21... gxf5 {[%clk 0:02:47.8]} 22. Re3 {[%clk 0:01:15.1]} 22... f4 {[%clk
0:02:41.7]} 23. gxf4 {[%clk 0:01:13.5]} 23... Rxf4 {[%clk 0:02:42.6]} 24. Kh2
{[%clk 0:00:58.4]} 24... Qe7 {[%clk 0:02:38]} 25. Nd4 {[%clk 0:00:53.3]} 25...
Rbf8 {[%clk 0:02:32.5]} 26. Nc6 {[%clk 0:00:51.5]} 26... Nxc6 {[%clk 0:02:32.3]}
27. dxc6 {[%clk 0:00:52.4]} 27... Kh8 {[%clk 0:02:32.1]} 28. Qd5 {[%clk
0:00:20]} 28... Qf6 {[%clk 0:02:31.7]} 29. Kg2 {[%clk 0:00:18.7]} 29... Ne6
{[%clk 0:02:27.9]} 30. a5 {[%clk 0:00:16.8]} 30... Ng5 {[%clk 0:02:27.7]} 31. a6
{[%clk 0:00:08.5]} 31... Nxf3 {[%clk 0:02:27.7]} 32. a7 {[%clk 0:00:07.3]} 32...
Nh4+ {[%clk 0:02:28.3]} 33. Kg1 {[%clk 0:00:05.2]} 33... Rxf2 {[%clk 0:02:28.2]}
34. a8=Q {[%clk 0:00:01.1]} 34... Rf1+ {[%clk 0:02:28.6]} 0-1

[Event "Late-Titled-Tuesday-Blitz-January-16-2024"]
[Site "Chess.com"]
[Date "2024.01.16"]
[Round "5"]
[White "Zkid"]
[Black "Ekko_li"]
[Result "1-0"]
[WhiteElo "2928"]
[BlackElo "2702"]
[TimeControl "180+1"]
[EndTime "14:50:56 PST"]
[Termination "Zkid won by resignation"]

1. e4 {[%clk 0:03:00.9]} 1... c6 {[%clk 0:02:58.2]} 2. d4 {[%clk 0:03:00.7]}
2... d5 {[%clk 0:02:58.9]} 3. e5 {[%clk 0:02:57]} 3... Bf5 {[%clk 0:02:58.4]} 4.
c4 {[%clk 0:02:57]} 4... e6 {[%clk 0:02:58.6]} 5. Nc3 {[%clk 0:02:57.6]} 5...
Bb4 {[%clk 0:02:55.4]} 6. cxd5 {[%clk 0:02:56.7]} 6... cxd5 {[%clk 0:02:53.4]}
7. Bd3 {[%clk 0:02:52.3]} 7... Ne7 {[%clk 0:02:47.8]} 8. Bxf5 {[%clk 0:02:41.6]}
8... Nxf5 {[%clk 0:02:47.6]} 9. Nf3 {[%clk 0:02:38.5]} 9... O-O {[%clk
0:02:46.8]} 10. Qd3 {[%clk 0:02:35.9]} 10... Qb6 {[%clk 0:02:42.6]} 11. g4
{[%clk 0:02:34.4]} 11... Ne7 {[%clk 0:02:38.4]} 12. h4 {[%clk 0:02:27.3]} 12...
Qa6 {[%clk 0:02:33.4]} 13. Qc2 {[%clk 0:02:24.1]} 13... Rc8 {[%clk 0:02:19.6]}
14. Ng5 {[%clk 0:02:04.9]} 14... g6 {[%clk 0:02:17.9]} 15. h5 {[%clk 0:02:04.6]}
15... Bxc3+ {[%clk 0:01:58.3]} 16. bxc3 {[%clk 0:02:03.2]} 16... Qc4 {[%clk
0:01:58.9]} 17. Nxh7 {[%clk 0:00:55.5]} 17... Qxc3+ {[%clk 0:01:25.2]} 18. Qxc3
{[%clk 0:00:55.3]} 18... Rxc3 {[%clk 0:01:26.1]} 19. Nf6+ {[%clk 0:00:52.3]}
19... Kg7 {[%clk 0:01:26.4]} 20. hxg6 {[%clk 0:00:45.1]} 20... Nxg6 {[%clk
0:01:16.5]} 21. Bh6+ {[%clk 0:00:43.5]} 1-0

[Event "Late-Titled-Tuesday-Blitz-January-16-2024"]
[Site "Chess.com"]
[Date "2024.01.16"]
[Round "5"]
[White "Jbd735"]
[Black "Javylavilla"]
[Result "0-1"]
[WhiteElo "2505"]
[BlackElo "2363"]
[TimeControl "180+1"]
[EndTime "14:51:00 PST"]
[Termination "Javylavilla won by checkmate"]

1. e4 {[%clk 0:03:00.2]} 1... c5 {[%clk 0:02:59.4]} 2. Nf3 {[%clk 0:03:00]} 2...
d6 {[%clk 0:02:59.9]} 3. Bb5+ {[%clk 0:03:00]} 3... Bd7 {[%clk 0:02:58.6]} 4.
Bxd7+ {[%clk 0:02:57.7]} 4... Qxd7 {[%clk 0:02:59.5]} 5. O-O {[%clk 0:02:56.8]}
5... Nc6 {[%clk 0:02:59.8]} 6. c3 {[%clk 0:02:55.8]} 6... e5 {[%clk 0:03:00]} 7.
d4 {[%clk 0:02:55.3]} 7... cxd4 {[%clk 0:02:59.7]} 8. cxd4 {[%clk 0:02:55.4]}
8... Nf6 {[%clk 0:02:59.8]} 9. Nc3 {[%clk 0:02:54.5]} 9... Be7 {[%clk 0:02:59]}
10. Bg5 {[%clk 0:02:53.2]} 10... O-O {[%clk 0:02:57.2]} 11. dxe5 {[%clk
0:02:28.9]} 11... dxe5 {[%clk 0:02:52.6]} 12. Qxd7 {[%clk 0:02:11.3]} 12... Nxd7
{[%clk 0:02:53.5]} 13. Bxe7 {[%clk 0:02:11.4]} 13... Nxe7 {[%clk 0:02:51.6]} 14.
Rfd1 {[%clk 0:02:10]} 14... Rfd8 {[%clk 0:02:42.6]} 15. Rd2 {[%clk 0:02:02.6]}
15... Nc6 {[%clk 0:02:37.5]} 16. Rad1 {[%clk 0:01:58.6]} 16... Nc5 {[%clk
0:02:21.3]} 17. Rxd8+ {[%clk 0:01:57.2]} 17... Rxd8 {[%clk 0:02:22.2]} 18. Rxd8+
{[%clk 0:01:56.5]} 18... Nxd8 {[%clk 0:02:23.1]} 19. Nxe5 {[%clk 0:01:56.1]}
19... f6 {[%clk 0:02:23.8]} 20. Nc4 {[%clk 0:01:52.4]} 20... Kf7 {[%clk
0:02:22.6]} 21. Kf1 {[%clk 0:01:48.4]} 21... Ke6 {[%clk 0:02:22.7]} 22. Ke2
{[%clk 0:01:46.9]} 22... a6 {[%clk 0:02:23]} 23. Ke3 {[%clk 0:01:28.3]} 23...
Nc6 {[%clk 0:02:22.1]} 24. f4 {[%clk 0:01:14.7]} 24... b5 {[%clk 0:02:21.3]} 25.
f5+ {[%clk 0:00:59.5]} 25... Kd7 {[%clk 0:02:09.8]} 26. Nb6+ {[%clk 0:00:58]}
26... Kd6 {[%clk 0:02:10]} 27. Nbd5 {[%clk 0:00:44]} 27... Ne5 {[%clk
0:02:05.1]} 28. Kd4 {[%clk 0:00:33.8]} 28... Ncd3 {[%clk 0:02:01.2]} 29. b4
{[%clk 0:00:24.4]} 29... Ne1 {[%clk 0:01:56.8]} 30. Ne3 {[%clk 0:00:20.6]} 30...
Nc6# {[%clk 0:01:49.5]} 0-1

[Event "Late-Titled-Tuesday-Blitz-January-16-2024"]
[Site "Chess.com"]
[Date "2024.01.16"]
[Round "5"]
[White "only_strong_moves"]
[Black "GothamChess"]
[Result "0-1"]
[WhiteElo "2553"]
[BlackElo "2752"]
[TimeControl "180+1"]
[EndTime "14:51:07 PST"]
[Termination "GothamChess won by resignation"]

1. d4 {[%clk 0:00:25]} 1... d5 {[%clk 0:02:54.6]} 2. Nc3 {[%clk 0:00:18.5]} 2...
e6 {[%clk 0:02:52.4]} 3. Bf4 {[%clk 0:00:18.6]} 3... Bd6 {[%clk 0:02:52.5]} 4.
e3 {[%clk 0:00:18.7]} 4... a6 {[%clk 0:02:51.8]} 5. Nf3 {[%clk 0:00:19.1]} 5...
Nd7 {[%clk 0:02:51]} 6. Be2 {[%clk 0:00:18.7]} 6... f5 {[%clk 0:02:51.1]} 7. O-O
{[%clk 0:00:17.3]} 7... Ngf6 {[%clk 0:02:51.8]} 8. Ne5 {[%clk 0:00:15.6]} 8...
O-O {[%clk 0:02:52.4]} 9. a3 {[%clk 0:00:12.5]} 9... Qe7 {[%clk 0:02:52.7]} 10.
Bg3 {[%clk 0:00:12.3]} 10... c5 {[%clk 0:02:52.7]} 11. Nxd7 {[%clk 0:00:09.9]}
11... Nxd7 {[%clk 0:02:52.6]} 12. Bxd6 {[%clk 0:00:10.8]} 12... Qxd6 {[%clk
0:02:53.5]} 13. f4 {[%clk 0:00:10.8]} 13... b5 {[%clk 0:02:49.4]} 14. dxc5
{[%clk 0:00:10.8]} 14... Nxc5 {[%clk 0:02:46.4]} 15. Qd4 {[%clk 0:00:11]} 15...
Bb7 {[%clk 0:02:45.2]} 16. Rad1 {[%clk 0:00:09.4]} 16... Rac8 {[%clk 0:02:45.8]}
17. Rd2 {[%clk 0:00:08.7]} 17... Qe7 {[%clk 0:02:42.4]} 18. Qe5 {[%clk
0:00:08.2]} 18... Nd7 {[%clk 0:02:39.3]} 19. Qd4 {[%clk 0:00:06.3]} 19... Rc7
{[%clk 0:02:37.3]} 20. Bf3 {[%clk 0:00:06.8]} 20... Rfc8 {[%clk 0:02:37.7]} 21.
Kh1 {[%clk 0:00:05]} 21... Qf6 {[%clk 0:02:37.5]} 22. Qd3 {[%clk 0:00:03.5]}
22... Nc5 {[%clk 0:02:35.1]} 23. Qd4 {[%clk 0:00:03]} 23... Nd7 {[%clk
0:02:32.2]} 24. Qd3 {[%clk 0:00:03.2]} 24... h6 {[%clk 0:02:32.9]} 25. g4 {[%clk
0:00:02.8]} 25... fxg4 {[%clk 0:02:25.1]} 26. Bg2 {[%clk 0:00:03.5]} 26... h5
{[%clk 0:02:23.7]} 27. f5 {[%clk 0:00:03.9]} 27... Ne5 {[%clk 0:02:19.4]} 28.
Qd4 {[%clk 0:00:03.7]} 28... Rc4 {[%clk 0:02:19.9]} 29. fxe6 {[%clk 0:00:02.9]}
29... Rxd4 {[%clk 0:02:18.8]} 30. Rxf6 {[%clk 0:00:02.9]} 30... Rxd2 {[%clk
0:02:18.8]} 31. Rf5 {[%clk 0:00:02.6]} 31... Nf3 {[%clk 0:02:17.4]} 32. Bxf3
{[%clk 0:00:02.7]} 32... gxf3 {[%clk 0:02:18.3]} 33. Rxf3 {[%clk 0:00:03]} 33...
d4 {[%clk 0:02:18.8]} 0-1

[Event "Late-Titled-Tuesday-Blitz-January-16-2024"]
[Site "Chess.com"]
[Date "2024.01.16"]
[Round "5"]
[White "dorpato"]
[Black "SmirnovTimofey2000"]
[Result "1-0"]
[WhiteElo "2139"]
[BlackElo "1975"]
[TimeControl "180+1"]
[EndTime "14:51:07 PST"]
[Termination "dorpato won by checkmate"]

1. e4 {[%clk 0:03:00.9]} 1... e5 {[%clk 0:02:54.7]} 2. d4 {[%clk 0:02:58.9]}
2... exd4 {[%clk 0:02:54.2]} 3. Nf3 {[%clk 0:02:56.6]} 3... Nc6 {[%clk
0:02:51.9]} 4. c3 {[%clk 0:02:56.1]} 4... dxc3 {[%clk 0:02:51.6]} 5. Nxc3 {[%clk
0:02:49.7]} 5... Bb4 {[%clk 0:02:41.9]} 6. Bc4 {[%clk 0:02:48.2]} 6... Nge7
{[%clk 0:02:34.6]} 7. Qb3 {[%clk 0:02:38.8]} 7... Bxc3+ {[%clk 0:02:31.6]} 8.
bxc3 {[%clk 0:02:35.3]} 8... O-O {[%clk 0:02:28.4]} 9. Ng5 {[%clk 0:02:30.2]}
9... Ne5 {[%clk 0:02:01.2]} 10. Be2 {[%clk 0:02:20.4]} 10... h6 {[%clk
0:01:52.7]} 11. Nf3 {[%clk 0:02:17.2]} 11... Nxf3+ {[%clk 0:01:50.5]} 12. gxf3
{[%clk 0:02:12.9]} 12... d5 {[%clk 0:01:37.2]} 13. Rg1 {[%clk 0:02:07]} 13...
Kh8 {[%clk 0:01:21.9]} 14. Bd2 {[%clk 0:01:41.9]} 14... dxe4 {[%clk 0:00:59]}
15. fxe4 {[%clk 0:01:40.1]} 15... b6 {[%clk 0:00:40]} 16. O-O-O {[%clk
0:01:33.5]} 16... Be6 {[%clk 0:00:38.8]} 17. Qb2 {[%clk 0:01:18.3]} 17... Qe8
{[%clk 0:00:35.7]} 18. c4 {[%clk 0:01:07]} 18... c5 {[%clk 0:00:34.9]} 19. Qxg7#
{[%clk 0:01:04.6]} 1-0

[Event "Late-Titled-Tuesday-Blitz-January-16-2024"]
[Site "Chess.com"]
[Date "2024.01.16"]
[Round "5"]
[White "katharinareinecke"]
[Black "Rgoltsman"]
[Result "0-1"]
[WhiteElo "2025"]
[BlackElo "2193"]
[TimeControl "180+1"]
[EndTime "14:51:08 PST"]
[Termination "Rgoltsman won by resignation"]

1. d4 {[%clk 0:03:00.9]} 1... Nf6 {[%clk 0:02:41.2]} 2. c4 {[%clk 0:02:58.1]}
2... g6 {[%clk 0:02:38.8]} 3. Nf3 {[%clk 0:02:56]} 3... Bg7 {[%clk 0:02:39.2]}
4. g3 {[%clk 0:02:55.8]} 4... O-O {[%clk 0:02:40.1]} 5. Bg2 {[%clk 0:02:55.8]}
5... d6 {[%clk 0:02:38.8]} 6. O-O {[%clk 0:02:55.1]} 6... Nc6 {[%clk 0:02:39.1]}
7. Nc3 {[%clk 0:02:54.9]} 7... e5 {[%clk 0:02:38.7]} 8. e4 {[%clk 0:02:55]} 8...
Bg4 {[%clk 0:02:36.9]} 9. d5 {[%clk 0:02:46.1]} 9... Nd4 {[%clk 0:02:35.4]} 10.
Be3 {[%clk 0:02:23.3]} 10... Nxf3+ {[%clk 0:02:23.9]} 11. Bxf3 {[%clk
0:02:22.4]} 11... Bxf3 {[%clk 0:02:24.8]} 12. Qxf3 {[%clk 0:02:21.8]} 12... h6
{[%clk 0:02:24.4]} 13. Qg2 {[%clk 0:02:09.5]} 13... Ng4 {[%clk 0:02:21.5]} 14.
Bd2 {[%clk 0:01:59]} 14... f5 {[%clk 0:02:20.5]} 15. h3 {[%clk 0:01:55.8]} 15...
Nf6 {[%clk 0:02:18.4]} 16. exf5 {[%clk 0:01:52.4]} 16... gxf5 {[%clk 0:02:19.3]}
17. f4 {[%clk 0:01:52]} 17... e4 {[%clk 0:02:17.7]} 18. g4 {[%clk 0:01:41.1]}
18... fxg4 {[%clk 0:01:42.4]} 19. hxg4 {[%clk 0:01:40.3]} 19... Qd7 {[%clk
0:01:29.8]} 20. g5 {[%clk 0:01:34.5]} 20... hxg5 {[%clk 0:01:30.7]} 21. fxg5
{[%clk 0:01:30.9]} 21... Ng4 {[%clk 0:01:29.8]} 22. Nxe4 {[%clk 0:01:24.9]}
22... Bd4+ {[%clk 0:01:26.8]} 23. Nf2 {[%clk 0:00:50]} 23... Bxf2+ {[%clk
0:01:23.3]} 24. Rxf2 {[%clk 0:00:44.2]} 24... Rxf2 {[%clk 0:01:24.2]} 0-1